fUST/lending_fUST_20251203
["ID","MTS","AMOUNT","RATE_DAILY","PERIOD"]
[395850077,1764730255259,-3514.13,0.00012162,2]
[395850079,1764730255268,-2507.93,0.00012162,2]
[395850081,1764730255278,-8867.94,0.00012162,2]
[395850083,1764730255287,-500.0,0.00012164,2]
[395850085,1764730255296,-819.65,0.00012164,2]
[395850087,1764730255306,-500.0,0.00012164,2]
[395850089,1764730255316,-500.0,0.00012164,2]
[395850091,1764730255326,-500.0,0.00012164,2]
[395850093,1764730255336,-500.0,0.00012164,2]
[395850095,1764730255345,-500.0,0.00012164,2]
[395850097,1764730255355,-500.0,0.00012164,2]
[395850099,1764730255365,-719.88,0.00012164,2]
[395850101,1764730255374,-500.0,0.00012164,2]
[395850103,1764730255383,-737.81,0.00012164,2]
[395850105,1764730255393,-502.91437539,0.00012164,2]
[395850107,1764730255403,-500.0,0.00012164,2]
[395850109,1764730255413,-500.0,0.00012164,2]
[395850111,1764730255421,-500.0,0.00012164,2]
[395850113,1764730255431,-500.0,0.00012164,2]
[395850115,1764730255440,-500.0,0.00012164,2]
[395850117,1764730255450,-505.32,0.00012164,2]
[395850119,1764730255459,-532.88,0.00012164,2]
[395850121,1764730255468,-621.8,0.00012164,2]
[395850123,1764730255478,-500.0,0.00012164,2]
[395850125,1764730255487,-500.0,0.00012164,2]
[395850127,1764730255497,-773.12,0.00012164,2]
[395850129,1764730255507,-500.0,0.00012164,2]
[395850131,1764730255516,-508.6,0.00012164,2]
[395850133,1764730255525,-500.0,0.00012164,2]
[395850135,1764730255535,-500.0,0.00012164,2]
[395850137,1764730255544,-500.0,0.00012164,2]
[395850139,1764730255554,-500.0,0.00012164,2]
[395850141,1764730255564,-500.0,0.00012164,2]
[395850143,1764730255573,-500.0,0.00012164,2]
[395850146,1764730255583,-1159.06,0.00012164,2]
[395850148,1764730255592,-587.59,0.00012164,2]
[395850149,1764730255602,-500.0,0.00012164,2]
[395850152,1764730255612,-899.56,0.00012164,2]
[395850153,1764730255622,-601.85,0.00012164,2]
[395850156,1764730255631,-500.0,0.00012164,2]
[395850158,1764730255640,-500.0,0.00012164,2]
[395850159,1764730255650,-198.19538909,0.00012164,2]
[395850162,1764730255660,-592.06,0.00012164,2]
[395850164,1764730255669,-500.0,0.00012164,2]
[395850166,1764730255678,-500.0,0.00012164,2]
[395850168,1764730255687,-500.0,0.00012164,2]
[395850170,1764730255697,-502.08324441,0.00012164,2]
[395850171,1764730255707,-799.39,0.00012164,2]
[395850174,1764730255717,-576.11,0.00012164,2]
[395850175,1764730255727,-802.24,0.00012164,2]
[395850178,1764730255736,-500.0,0.00012164,2]
[395850180,1764730255746,-369.08407848,0.00012164,2]
[395850181,1764730255755,-1495.74,0.00012164,2]
[395850183,1764730255766,-500.0,0.00012164,2]
[395850185,1764730255776,-509.06742919,0.00012164,2]
[395850187,1764730255786,-500.0,0.00012164,2]
[395850190,1764730255796,-158.66385486,0.00012164,2]
[395850192,1764730255806,-614.39,0.00012164,2]
[395850194,1764730255817,-503.22115918,0.00012164,2]
[395850195,1764730255826,-500.0,0.00012164,2]
[395850197,1764730255835,-500.0,0.00012164,2]
[395850199,1764730255845,-524.66993589,0.00012164,2]
[395850201,1764730255854,-500.0,0.00012164,2]
[395850203,1764730255864,-500.0,0.00012164,2]
[395850206,1764730255875,-500.0,0.00012164,2]
[395850208,1764730255885,-500.0,0.00012164,2]
[395850210,1764730255895,-500.0,0.00012164,2]
[395850212,1764730255904,-500.0,0.00012164,2]
[395850214,1764730255914,-545.36,0.00012164,2]
[395850216,1764730255923,-500.0,0.00012164,2]
[395850218,1764730255933,-500.0,0.00012164,2]
[395850220,1764730255942,-500.0,0.00012164,2]
[395850222,1764730255951,-642.52,0.00012164,2]
[395850224,1764730255960,-1424.18,0.00012164,2]
[395850226,1764730255970,-272.9164306,0.00012164,2]
[395850228,1764730255979,-500.0,0.00012164,2]
[395850230,1764730255989,-634.68,0.00012164,2]
[395850232,1764730255999,-500.0,0.00012164,2]
[395850234,1764730256008,-154.31517294,0.00012164,2]
[395850236,1764730256017,-627.3,0.00012164,2]
[395850238,1764730256026,-500.0,0.00012164,2]
[395850240,1764730256036,-720.85,0.00012164,2]
[395850242,1764730256046,-500.0,0.00012164,2]
[395850244,1764730256057,-500.0,0.00012164,2]
[395850246,1764730256066,-920.42,0.00012164,2]
[395850248,1764730256076,-500.0,0.00012164,2]
[395850250,1764730256085,-500.0,0.00012164,2]
[395850252,1764730256095,-691.24,0.00012164,2]
[395850254,1764730256105,-500.0,0.00012164,2]
[395850256,1764730256115,-500.0,0.00012164,2]
[395850258,1764730256124,-500.0,0.00012164,2]
[395850260,1764730256135,-500.0,0.00012164,2]
[395850262,1764730256144,-1309.36,0.00012164,2]
[395850264,1764730256157,-682.61,0.00012164,2]
[395850266,1764730256167,-638.92,0.00012164,2]
[395850269,1764730256177,-500.0,0.00012164,2]
[395850271,1764730256187,-500.0,0.00012164,2]
[395850273,1764730256197,-500.0,0.00012164,2]
[395850275,1764730256207,-500.0,0.00012164,2]
[395850277,1764730256219,-500.0,0.00012164,2]
[395850279,1764730256232,-500.0,0.00012164,2]
[395850281,1764730256247,-500.0,0.00012164,2]
[395850283,1764730256256,-734.04,0.00012164,2]
[395850285,1764730256266,-610.29,0.00012164,2]
[395850287,1764730256276,-803.87,0.00012164,2]
[395850289,1764730256287,-521.83,0.00012164,2]
[395850291,1764730256296,-1089.77,0.00012164,2]
[395850293,1764730256305,-500.0,0.00012164,2]
[395850295,1764730256314,-500.0,0.00012164,2]
[395850297,1764730256322,-500.0,0.00012164,2]
[395850299,1764730256332,-1484.87,0.00012164,2]
[395850301,1764730256341,-500.0,0.00012164,2]
[395850303,1764730256351,-500.0,0.00012164,2]
[395850311,1764730256412,-500.0,0.00012164,2]
[395850313,1764730256421,-511.77,0.00012164,2]
[395850315,1764730256430,-500.0,0.00012164,2]
[395850317,1764730256439,-690.3,0.00012164,2]
[395850319,1764730256447,-500.0,0.00012164,2]
[395850321,1764730256457,-500.0,0.00012164,2]
[395850323,1764730256466,-500.0,0.00012164,2]
[395850325,1764730256475,-759.89,0.00012164,2]
[395850327,1764730256484,-500.0,0.00012164,2]
[395850329,1764730256493,-500.0,0.00012164,2]
[395850331,1764730256502,-911.09,0.00012164,2]
[395850333,1764730256510,-548.61,0.00012164,2]
[395850335,1764730256520,-500.0,0.00012164,2]
[395850337,1764730256528,-500.0,0.00012164,2]
[395850338,1764730256537,-972.83,0.00012164,2]
[395850340,1764730256546,-597.22,0.00012164,2]
[395850342,1764730256555,-1290.22,0.00012164,2]
[395850344,1764730256564,-693.01,0.00012164,2]
[395850346,1764730256574,-536.56,0.00012164,2]
[395850348,1764730256583,-675.83,0.00012164,2]
[395850350,1764730256592,-543.32,0.00012164,2]
[395850352,1764730256601,-816.77,0.00012164,2]
[395850354,1764730256610,-2126.16,0.00012164,2]
[395850357,1764730256620,-500.0,0.00012164,2]
[395850358,1764730256630,-500.0,0.00012164,2]
[395850360,1764730256640,-1760.7,0.00012164,2]
[395850362,1764730256651,-500.0,0.00012164,2]
[395850364,1764730256660,-500.0,0.00012164,2]
[395850367,1764730256670,-500.0,0.00012164,2]
[395850368,1764730256679,-364.00267677,0.00012164,2]
[395850371,1764730256690,-500.0,0.00012164,2]
[395850373,1764730256701,-542.3,0.00012164,2]
[395850374,1764730256710,-596.56,0.00012164,2]
[395850376,1764730256720,-530.48,0.00012164,2]
[395850379,1764730256730,-500.0,0.00012164,2]
[395850381,1764730256741,-948.52,0.00012164,2]
[395850383,1764730256752,-500.0,0.00012164,2]
[395850384,1764730256763,-681.58,0.00012164,2]
[395850386,1764730256773,-500.0,0.00012164,2]
[395850389,1764730256783,-500.0,0.00012164,2]
[395850390,1764730256792,-242.55339187,0.00012178,2]
[395850393,1764730256802,-513.39,0.00012429,2]
[395850395,1764730256812,-2188.59,0.0001243,2]
[395850397,1764730256822,-914.87,0.0001243,2]
[395850398,1764730256832,-757.21,0.0001243,2]
[395850400,1764730256841,-631.43,0.0001243,2]
[395850402,1764730256855,-500.0,0.0001243,2]
[395850404,1764730256874,-5715.04,0.0001243,2]
[395850406,1764730256883,-3800.0,0.0001243,2]
[395850408,1764730256892,-4190.39,0.0001243,2]
[395850410,1764730256902,-500.0,0.0001243,2]
[395850412,1764730256913,-500.0,0.0001243,2]
[395850414,1764730256924,-906.02,0.0001243,2]
[395850416,1764730256934,-500.0,0.0001243,2]
[395850418,1764730256944,-593.92,0.0001243,2]
[395850420,1764730256953,-1238.71,0.0001243,2]
[395850422,1764730256962,-949.72,0.0001243,2]
[395850425,1764730256972,-500.0,0.0001243,2]
[395850427,1764730256981,-905.02,0.0001243,2]
[395850429,1764730256991,-500.0,0.0001243,2]
[395850431,1764730257000,-500.0,0.00012433,2]
[395850433,1764730257010,-500.0,0.00012433,2]
[395850435,1764730257019,-500.0,0.00012433,2]
[395850437,1764730257029,-535.86,0.00012433,2]
[395850439,1764730257038,-500.0,0.00012433,2]
[395850441,1764730257047,-500.0,0.00012433,2]
[395850443,1764730257056,-500.0,0.00012433,2]
[395850445,1764730257066,-500.0,0.00012433,2]
[395850446,1764730257075,-608.32,0.00012433,2]
[395850448,1764730257084,-500.0,0.00012433,2]
[395850450,1764730257094,-500.0,0.00012433,2]
[395850452,1764730257103,-500.0,0.00012433,2]
[395850454,1764730257113,-532.06,0.00012433,2]
[395850457,1764730257122,-500.0,0.00012433,2]
[395850459,1764730257132,-500.0,0.00012433,2]
[395850461,1764730257141,-500.0,0.00012433,2]
[395850463,1764730257154,-614.69442209,0.00012433,2]
[395850465,1764730257163,-176.50444148,0.00012433,2]
[395850467,1764730257172,-614.03,0.00012433,2]
[395850469,1764730257182,-610.9,0.00012434,2]
[395850471,1764730257192,-1749.59,0.00012434,2]
[395850473,1764730257201,-1075.22,0.00012434,2]
[395850475,1764730257210,-500.0,0.00012434,2]
[395850476,1764730257219,-608.23,0.00012434,2]
[395850479,1764730257230,-500.0,0.00012434,2]
[395850481,1764730257238,-1223.7,0.00012434,2]
[395850482,1764730257247,-500.0,0.00012434,2]
[395850485,1764730257259,-2923.2,0.00012434,2]
[395850487,1764730257268,-500.0,0.00012434,2]
[395850489,1764730257278,-861.17,0.00012434,2]
[395850491,1764730257287,-1320.57,0.00012434,2]
[395850493,1764730257298,-763.78,0.00012434,2]
[395850495,1764730257307,-1209.37,0.00012434,2]
[395850497,1764730257316,-918.58,0.00012434,2]
[395850498,1764730257327,-711.57,0.00012434,2]
[395850501,1764730257337,-1558.39,0.00012434,2]
[395850503,1764730257346,-856.65,0.00012434,2]
[395850504,1764730257355,-1721.22,0.00012434,2]
[395850507,1764730257365,-1021.78,0.00012434,2]
[395850508,1764730257374,-1421.96,0.00012434,2]
[395850510,1764730257383,-655.14,0.00012434,2]
[395850512,1764730257392,-500.0,0.00012434,2]
[395850514,1764730257400,-500.0,0.00012434,2]
[395850516,1764730257411,-1287.38,0.00012434,2]
[395850518,1764730257421,-1236.54,0.00012434,2]
[395850520,1764730257430,-1659.16,0.00012434,2]
[395850522,1764730257439,-3508.15,0.00012434,2]
[395850524,1764730257449,-1415.16,0.00012434,2]
[395850526,1764730257458,-500.0,0.00012434,2]
[395850528,1764730257468,-1642.04,0.00012434,2]
[395850530,1764730257477,-1741.69,0.00012434,2]
[395850532,1764730257487,-1323.83,0.00012434,2]
[395850534,1764730257497,-718.16,0.00012434,2]
[395850536,1764730257506,-642.07,0.00012434,2]
[395850538,1764730257515,-527.14,0.00012434,2]
[395850540,1764730257525,-500.0,0.00012434,2]
[395850542,1764730257534,-5919.28,0.00012434,2]
[395850545,1764730257543,-982.77,0.00012434,2]
[395850546,1764730257554,-1254.35,0.00012434,2]
[395850548,1764730257564,-1340.61,0.00012434,2]
[395850551,1764730257574,-1202.43,0.00012435,2]
[395850553,1764730257583,-500.0,0.00012435,2]
[395850554,1764730257592,-500.0,0.00012435,2]
[395850557,1764730257601,-500.0,0.00012435,2]
[395850559,1764730257611,-500.0,0.00012435,2]
[395850561,1764730257621,-500.0,0.00012435,2]
[395850562,1764730257630,-500.0,0.00012435,2]
[395850564,1764730257640,-1440.54,0.00012435,2]
[395850566,1764730257650,-529.62450033,0.00012435,2]
[395850568,1764730257660,-500.0,0.00012435,2]
[395850570,1764730257669,-1074.76,0.00012435,2]
[395850572,1764730257679,-500.0,0.00012435,2]
[395850574,1764730257688,-760.48,0.00012435,2]
[395850576,1764730257698,-500.0,0.00012435,2]
[395850578,1764730257708,-676.9,0.00012435,2]
[395850580,1764730257718,-570.81,0.00012435,2]
[395850583,1764730257728,-500.0,0.00012435,2]
[395850584,1764730257738,-919.98,0.00012435,2]
[395850586,1764730257749,-500.0,0.00012435,2]
[395850588,1764730257760,-875.31,0.00012435,2]
[395850590,1764730257771,-755.52,0.00012435,2]
[395850593,1764730257782,-500.0,0.00012435,2]
[395850595,1764730257792,-640.6,0.00012435,2]
[395850596,1764730257802,-500.0,0.00012435,2]
[395850598,1764730257812,-946.76,0.00012435,2]
[395850600,1764730257822,-1026.4,0.00012435,2]
[395850602,1764730257833,-500.0,0.00012435,2]
[395850605,1764730257843,-500.0,0.00012435,2]
[395850606,1764730257852,-605.93,0.00012435,2]
[395850608,1764730257863,-521.82,0.00012435,2]
[395850611,1764730257873,-500.0,0.00012435,2]
[395850612,1764730257882,-656.13,0.00012435,2]
[395850614,1764730257892,-500.0,0.00012435,2]
[395850616,1764730257902,-500.0,0.00012435,2]
[395850618,1764730257911,-605.14,0.00012435,2]
[395850621,1764730257923,-1234.95,0.00012435,2]
[395850623,1764730257933,-853.36,0.00012435,2]
[395850624,1764730257942,-500.0,0.00012435,2]
[395850627,1764730257952,-655.91,0.00012435,2]
[395850628,1764730257960,-500.0,0.00012435,2]
[395850630,1764730257969,-500.0,0.00012435,2]
[395850632,1764730257979,-808.73,0.00012435,2]
[395850634,1764730257987,-500.0,0.00012435,2]
[395850636,1764730257996,-500.0,0.00012435,2]
[395850638,1764730258005,-4954.61,0.00012435,2]
[395850640,1764730258015,-500.0,0.00012435,2]
[395850642,1764730258024,-540.62,0.00012435,2]
[395850644,1764730258033,-500.0,0.00012435,2]
[395850646,1764730258043,-1087.18,0.00012435,2]
[395850648,1764730258052,-744.5,0.00012435,2]
[395850651,1764730258063,-500.0,0.00012435,2]
[395850653,1764730258073,-500.0,0.00012435,2]
[395850655,1764730258084,-986.65,0.00012435,2]
[395850657,1764730258093,-500.0,0.00012435,2]
[395850659,1764730258102,-620.99,0.00012435,2]
[395850660,1764730258112,-595.38,0.00012435,2]
[395850663,1764730258123,-650.6,0.00012435,2]
[395850665,1764730258131,-839.65,0.00012435,2]
[395850667,1764730258141,-500.0,0.00012435,2]
[395850669,1764730258154,-500.0,0.00012435,2]
[395850671,1764730258163,-993.85,0.00012435,2]
[395850673,1764730258172,-679.78,0.00012435,2]
[395850674,1764730258182,-1880.3,0.00012435,2]
[395850676,1764730258191,-1448.11,0.00012435,2]
[395850678,1764730258201,-1276.28,0.00012435,2]
[395850680,1764730258212,-500.0,0.00012435,2]
[395850683,1764730258222,-541.63,0.00012435,2]
[395850685,1764730258233,-500.0,0.00012435,2]
[395850687,1764730258244,-861.45,0.00012435,2]
[395850689,1764730258254,-630.92,0.00012435,2]
[395850691,1764730258263,-500.0,0.00012435,2]
[395850693,1764730258273,-1197.3,0.00012435,2]
[395850694,1764730258282,-507.72,0.00012435,2]
[395850696,1764730258293,-4394.75,0.00012435,2]
[395850698,1764730258301,-500.0,0.00012435,2]
[395850700,1764730258311,-514.8,0.00012435,2]
[395850702,1764730258319,-1515.87,0.00012435,2]
[395850704,1764730258330,-514.64,0.00012435,2]
[395850706,1764730258338,-947.88,0.00012435,2]
[395850708,1764730258348,-515.49,0.00012435,2]
[395850710,1764730258357,-2584.88,0.00012435,2]
[395850712,1764730258366,-500.0,0.00012435,2]
[395850714,1764730258376,-536.58,0.00012435,2]
[395850715,1764730258385,-1696.61,0.00012436,2]
[395850716,1764730258394,-500.0,0.00012436,2]
[395850717,1764730258403,-560.9,0.00012436,2]
[395850718,1764730258412,-3514.13,0.00012436,2]
[395850719,1764730258421,-2507.93,0.00012436,2]
[395850720,1764730258430,-8867.94,0.00012436,2]
[395850721,1764730258438,-500.0,0.00012438,2]
[395850722,1764730258447,-819.65,0.00012438,2]
[395850723,1764730258456,-500.0,0.00012438,2]
[395850724,1764730258465,-500.0,0.00012438,2]
[395850725,1764730258474,-500.0,0.00012438,2]
[395850726,1764730258483,-500.0,0.00012438,2]
[395850727,1764730258491,-500.0,0.00012438,2]
[395850728,1764730258501,-500.0,0.00012438,2]
[395850730,1764730258509,-719.88,0.00012438,2]
[395850731,1764730258518,-500.0,0.00012438,2]
[395850732,1764730258527,-737.81,0.00012438,2]
[395850734,1764730258536,-500.0,0.00012438,2]
[395850736,1764730258545,-500.0,0.00012438,2]
[395850738,1764730258554,-500.0,0.00012438,2]
[395850740,1764730258564,-500.0,0.00012438,2]
[395850742,1764730258573,-505.32,0.00012438,2]
[395850744,1764730258582,-500.0,0.00012438,2]
[395850746,1764730258591,-532.88,0.00012438,2]
[395850748,1764730258600,-621.8,0.00012438,2]
[395850750,1764730258609,-500.0,0.00012438,2]
[395850752,1764730258618,-500.0,0.00012438,2]
[395850754,1764730258627,-773.12,0.00012438,2]
[395850756,1764730258637,-500.0,0.00012438,2]
[395850758,1764730258645,-508.6,0.00012438,2]
[395850760,1764730258655,-500.0,0.00012438,2]
[395850762,1764730258664,-500.0,0.00012438,2]
[395850764,1764730258673,-500.0,0.00012438,2]
[395850766,1764730258682,-500.0,0.00012438,2]
[395850768,1764730258690,-500.0,0.00012438,2]
[395850769,1764730258699,-500.0,0.00012438,2]
[395850772,1764730258709,-1159.06,0.00012438,2]
[395850774,1764730258718,-587.59,0.00012438,2]
[395850775,1764730258727,-500.0,0.00012438,2]
[395850777,1764730258736,-899.56,0.00012438,2]
[395850779,1764730258745,-601.85,0.00012438,2]
[395850781,1764730258754,-500.0,0.00012438,2]
[395850783,1764730258764,-500.0,0.00012438,2]
[395850785,1764730258773,-592.06,0.00012438,2]
[395850787,1764730258782,-500.0,0.00012438,2]
[395850789,1764730258791,-500.0,0.00012438,2]
[395850791,1764730258800,-500.0,0.00012438,2]
[395850793,1764730258809,-799.39,0.00012438,2]
[395850795,1764730258818,-576.11,0.00012438,2]
[395850797,1764730258827,-802.24,0.00012438,2]
[395850799,1764730258836,-500.0,0.00012438,2]
[395850801,1764730258845,-1495.74,0.00012438,2]
[395850803,1764730258854,-500.0,0.00012438,2]
[395850805,1764730258867,-500.0,0.00012438,2]
[395850807,1764730258877,-614.39,0.00012438,2]
[395850809,1764730258886,-500.0,0.00012438,2]
[395850811,1764730258895,-500.0,0.00012438,2]
[395850813,1764730258905,-500.0,0.00012438,2]
[395850815,1764730258914,-500.0,0.00012438,2]
[395850817,1764730258927,-500.0,0.00012438,2]
[395850819,1764730258944,-500.0,0.00012438,2]
[395850821,1764730258953,-500.0,0.00012438,2]
[395850823,1764730258962,-500.0,0.00012438,2]
[395850825,1764730258971,-545.36,0.00012438,2]
[395850827,1764730258980,-500.0,0.00012438,2]
[395850829,1764730258989,-500.0,0.00012438,2]
[395850831,1764730258998,-500.0,0.00012438,2]
[395850833,1764730259007,-642.52,0.00012438,2]
[395850835,1764730259017,-1424.18,0.00012438,2]
[395850837,1764730259026,-500.0,0.00012438,2]
[395850839,1764730259036,-634.68,0.00012438,2]
[395850841,1764730259045,-500.0,0.00012438,2]
[395850843,1764730259054,-627.3,0.00012438,2]
[395850844,1764730259063,-500.0,0.00012438,2]
[395850846,1764730259072,-720.85,0.00012438,2]
[395850848,1764730259081,-500.0,0.00012438,2]
[395850850,1764730259091,-500.0,0.00012438,2]
[395850852,1764730259100,-920.42,0.00012438,2]
[395850854,1764730259109,-500.0,0.00012438,2]
[395850856,1764730259118,-500.0,0.00012438,2]
[395850858,1764730259127,-691.24,0.00012438,2]
[395850860,1764730259136,-500.0,0.00012438,2]
[395850862,1764730259147,-500.0,0.00012438,2]
[395850864,1764730259159,-500.0,0.00012438,2]
[395850866,1764730259168,-500.0,0.00012438,2]
[395850868,1764730259177,-1309.36,0.00012438,2]
[395850870,1764730259186,-638.92,0.00012438,2]
[395850872,1764730259196,-682.61,0.00012438,2]
[395850874,1764730259206,-500.0,0.00012438,2]
[395850876,1764730259215,-500.0,0.00012438,2]
[395850878,1764730259227,-500.0,0.00012438,2]
[395850880,1764730259237,-500.0,0.00012438,2]
[395850882,1764730259246,-500.0,0.00012438,2]
[395850884,1764730259255,-182.97661728,0.00012438,2]
[395850886,1764730259264,-500.0,0.00012438,2]
[395850888,1764730259273,-734.04,0.00012438,2]
[395850890,1764730259282,-610.29,0.00012438,2]
[395850892,1764730259292,-803.87,0.00012438,2]
[395850894,1764730259301,-521.83,0.00012438,2]
[395850896,1764730259310,-1089.77,0.00012438,2]
[395850898,1764730259319,-500.0,0.00012438,2]
[395850900,1764730259329,-500.0,0.00012438,2]
[395850902,1764730259339,-500.0,0.00012438,2]
[395850904,1764730259349,-1484.87,0.00012438,2]
[395850906,1764730259358,-500.0,0.00012438,2]
[395850908,1764730259368,-500.0,0.00012438,2]
[395850910,1764730259377,-500.0,0.00012438,2]
[395850912,1764730259389,-511.77,0.00012438,2]
[395850914,1764730259399,-500.0,0.00012438,2]
[395850916,1764730259408,-690.3,0.00012438,2]
[395850918,1764730259418,-500.0,0.00012438,2]
[395850920,1764730259427,-500.0,0.00012438,2]
[395850922,1764730259436,-500.0,0.00012438,2]
[395850924,1764730259445,-759.89,0.00012438,2]
[395850926,1764730259454,-500.0,0.00012438,2]
[395850928,1764730259462,-500.0,0.00012438,2]
[395850930,1764730259471,-911.09,0.00012438,2]
[395850932,1764730259480,-548.61,0.00012438,2]
[395850934,1764730259490,-157.60575121,0.00012438,2]
[395850936,1764730259497,-972.83,0.00012438,2]
[395850938,1764730259506,-597.22,0.00012438,2]
[395850940,1764730259515,-1290.22,0.00012438,2]
[395850942,1764730259524,-693.01,0.00012438,2]
[395850944,1764730259533,-536.56,0.00012438,2]
[395850946,1764730259542,-675.83,0.00012438,2]
[395850948,1764730259551,-543.32,0.00012438,2]
[395850950,1764730259561,-816.77,0.00012438,2]
[395850952,1764730259570,-2126.16,0.00012438,2]
[395850954,1764730259579,-500.0,0.00012438,2]
[395850955,1764730259588,-500.0,0.00012438,2]
[395850957,1764730259597,-1760.7,0.00012438,2]
[395850959,1764730259606,-500.0,0.00012438,2]
[395850961,1764730259616,-500.0,0.00012438,2]
[395850963,1764730259625,-500.0,0.00012438,2]
[395850965,1764730259634,-500.0,0.00012438,2]
[395850967,1764730259644,-542.3,0.00012438,2]
[395850969,1764730259653,-596.56,0.00012438,2]
[395850971,1764730259662,-530.48,0.00012438,2]
[395850973,1764730259671,-500.0,0.00012438,2]
[395850975,1764730259681,-948.52,0.00012438,2]
[395850977,1764730259690,-500.0,0.00012438,2]
[395850979,1764730259700,-681.58,0.00012438,2]
[395850981,1764730259711,-500.0,0.00012438,2]
[395850983,1764730259722,-500.0,0.00012438,2]
[395850985,1764730259731,-420.0,0.00012449,2]
[395850987,1764730259740,-250.0,0.000126,2]
[395850990,1764730259750,-324.3885474,0.00012603,2]
[395850992,1764730259759,-153.0,0.00012603,2]
[395850994,1764730259768,-153.0,0.00012603,2]
[395850996,1764730259777,-153.5383352,0.00012603,2]
[395850997,1764730259786,-153.0,0.00012603,2]
[395850999,1764730259796,-319.5668073,0.00012603,2]
[395851001,1764730259805,-1198.88956871,0.00012655,2]
[395851003,1764730259814,-1198.88956871,0.00012698,2]
[395851005,1764730259823,-513.39,0.00012703,2]
[395851007,1764730259832,-2188.59,0.00012704,2]
[395851010,1764730259842,-914.87,0.00012704,2]
[395851012,1764730259852,-757.21,0.00012704,2]
[395851014,1764730259862,-631.43,0.00012704,2]
[395851016,1764730259872,-500.0,0.00012704,2]
[395851018,1764730259881,-5715.04,0.00012704,2]
[395851020,1764730259890,-3800.0,0.00012704,2]
[395851022,1764730259900,-4190.39,0.00012704,2]
[395851024,1764730259909,-500.0,0.00012704,2]
[395851026,1764730259918,-500.0,0.00012704,2]
[395851028,1764730259927,-906.02,0.00012704,2]
[395851030,1764730259936,-500.0,0.00012704,2]
[395851032,1764730259945,-593.92,0.00012704,2]
[395851033,1764730259955,-1238.71,0.00012704,2]
[395851035,1764730259964,-949.72,0.00012704,2]
[395851037,1764730259974,-500.0,0.00012704,2]
[395851039,1764730259983,-905.02,0.00012704,2]
[395851041,1764730259992,-500.0,0.00012704,2]
[395851043,1764730260002,-500.0,0.00012707,2]
[395851046,1764730260012,-500.0,0.00012707,2]
[395851047,1764730260021,-500.0,0.00012707,2]
[395851049,1764730260031,-535.86,0.00012707,2]
[395851051,1764730260041,-237.76052522,0.00012707,2]
[395851053,1764730260050,-500.0,0.00012707,2]
[395851055,1764730260060,-500.0,0.00012707,2]
[395851057,1764730260070,-500.0,0.00012707,2]
[395851059,1764730260080,-608.32,0.00012707,2]
[395851061,1764730260089,-500.0,0.00012707,2]
[395851063,1764730260098,-383.93618352,0.00012707,2]